{"text_format":"1","workbook":"xlsx","n_sheets":1,"sheets":["Producent"],"not_rendered":{"charts":0,"images":0,"macros":0,"external_links":0,"defined_names":2,"comments":0,"pivot_tables":0},"unopened":[],"bounds":{"document_bytes":16777216,"sheet_cells":100000,"rows_first":2000,"rows_last":500,"rows_between":2000,"halvings":0,"cell_chars":16384,"cell_head_chars":4096},"cells_cut":0,"cells_raw":0,"read":"whole","date_system":"1900"}

{"sheet":"Producent","index":0,"n_rows":111,"n_cols":30,"rows_kept":111,"cut":false,"hidden":false,"merged":[[70,28,70,30],[96,1,100,21],[80,1,81,6],[80,7,81,7],[82,1,82,6],[83,1,83,6],[84,1,84,6],[85,1,85,6],[86,1,86,6],[87,1,87,6],[88,1,88,6],[89,1,89,6],[90,1,90,6],[91,1,91,6],[92,1,92,6],[73,23,73,30],[74,23,74,30],[75,23,75,30],[76,23,76,30],[91,18,91,23],[92,18,92,23],[89,8,89,17],[90,8,90,17],[91,8,91,17],[92,8,92,17],[51,1,53,5],[88,24,88,30],[89,24,89,30],[90,24,90,30],[91,24,91,30],[92,24,92,30],[89,18,89,23],[87,18,87,23],[88,18,88,23],[90,18,90,23],[87,24,87,30],[83,18,83,23],[79,1,79,30],[54,9,56,14],[57,9,69,30],[80,8,80,23],[82,24,82,30],[83,24,83,30],[84,24,84,30],[85,24,85,30],[81,8,81,17],[82,8,82,17],[83,8,83,17],[107,1,107,30],[104,1,104,30],[103,1,103,30],[33,1,33,30],[34,1,34,5],[34,7,34,8],[34,9,34,11],[34,12,34,14],[34,15,34,17],[34,18,34,20],[34,29,34,30],[35,1,37,5],[35,6,37,6],[35,7,37,8],[35,9,35,30],[36,9,37,14],[36,15,36,20],[36,21,37,21],[36,22,37,22],[36,23,37,23],[36,24,37,24],[68,1,68,5],[69,1,69,5],[57,7,57,8],[17,17,17,30],[13,1,13,15],[16,1,16,15],[17,1,17,15],[12,1,12,15],[25,25,27,25],[25,23,27,23],[25,15,27,17],[25,7,27,8],[25,1,27,5],[21,1,21,5],[20,1,20,30],[22,1,24,5],[10,1,10,30],[11,1,11,15],[11,17,11,30],[14,1,14,15],[14,17,14,30],[15,17,15,30],[15,1,15,15],[16,17,16,30],[12,17,12,30],[61,7,61,8],[66,7,66,8],[67,7,67,8],[67,1,67,5],[57,1,58,4],[65,1,65,5],[63,1,63,5],[21,29,21,30],[21,18,21,20],[62,7,62,8],[58,7,58,8],[41,7,43,8],[41,9,43,14],[41,15,43,17],[41,18,43,20],[38,26,40,26],[38,27,40,27],[54,7,56,8],[54,27,56,27],[54,21,56,21],[54,22,56,22],[47,15,47,17],[47,18,47,20],[36,25,37,25],[36,26,37,26],[36,27,37,27],[49,28,50,30],[28,22,30,22],[51,28,53,30],[54,28,56,30],[47,1,47,5],[54,1,56,5],[64,7,64,8],[51,6,53,6],[54,6,56,6],[47,7,47,8],[47,9,47,11],[44,1,44,5],[62,1,62,5],[49,9,50,14],[48,1,50,5],[41,26,43,26],[41,27,43,27],[41,28,43,28],[38,9,40,14],[47,12,47,14],[49,23,50,23],[28,18,30,20],[28,23,30,23],[28,15,30,17],[38,15,40,17],[38,18,40,20],[38,23,40,23],[38,24,40,24],[38,25,40,25],[41,23,43,23],[41,24,43,24],[41,25,43,25],[1,19,5,30],[7,1,7,30],[8,1,8,30],[13,17,13,30],[50,18,50,20],[49,21,50,21],[49,25,50,25],[48,6,50,6],[28,24,30,24],[31,18,31,20],[46,1,46,30],[28,9,30,14],[23,9,24,14],[25,9,27,14],[23,23,24,23],[24,15,24,17],[24,18,24,20],[21,9,21,11],[22,7,24,8],[21,7,21,8],[21,12,21,14],[23,25,24,25],[23,27,24,27],[38,21,40,21],[94,1,95,30],[96,22,100,30],[31,9,31,14],[25,22,27,22],[25,24,27,24],[25,26,27,26],[25,27,27,27],[87,8,87,17],[88,8,88,17],[51,7,53,8],[51,23,53,23],[51,15,53,17],[51,24,53,24],[51,25,53,25],[51,26,53,26],[51,9,53,14],[51,21,53,21],[51,22,53,22],[51,27,53,27],[50,15,50,17],[49,15,49,20],[49,27,50,27],[48,9,48,30],[48,7,50,8],[31,1,31,5],[23,15,23,20],[25,21,27,21],[28,1,30,5],[25,18,27,20],[38,22,40,22],[44,7,44,8],[44,9,44,14],[44,15,44,17],[44,18,44,20],[41,21,43,21],[41,22,43,22],[37,15,37,17],[37,18,37,20],[28,6,30,6],[38,7,40,8],[31,15,31,17],[41,1,43,5],[41,6,43,6],[38,1,40,5],[38,6,40,6],[28,21,30,21],[82,18,82,23],[28,7,30,8],[31,7,31,8],[47,28,47,30],[25,6,27,6],[22,6,24,6],[21,15,21,17],[23,26,24,26],[23,28,24,28],[22,9,22,30],[25,28,27,28],[23,24,24,24],[23,21,24,21],[23,22,24,22],[51,18,53,20],[70,15,70,17],[70,9,70,14],[28,27,30,27],[36,28,37,28],[28,26,30,26],[28,25,30,25],[49,26,50,26],[28,28,30,28],[38,28,40,28],[54,18,56,20],[105,1,105,30],[54,26,56,26],[54,15,56,17],[54,23,56,23],[54,24,56,24],[76,1,76,22],[68,7,68,8],[69,7,69,8],[70,7,70,8],[72,1,72,30],[73,1,73,22],[74,1,74,22],[75,1,75,22],[70,1,70,5],[84,8,84,17],[85,8,85,17],[86,8,86,17],[86,24,86,30],[84,18,84,23],[85,18,85,23],[86,18,86,23],[80,24,81,30],[81,18,81,23],[109,1,109,30],[110,1,110,30],[106,1,106,30],[108,1,108,30],[23,29,24,30],[25,29,27,30],[28,29,30,30],[31,29,31,30],[36,29,37,30],[38,29,40,30],[41,29,43,30],[44,29,44,30],[70,18,70,20],[65,7,65,8],[66,1,66,5],[63,7,63,8],[64,1,64,5],[59,1,60,5],[59,6,60,6],[59,7,60,8],[61,1,61,5],[49,24,50,24],[49,22,50,22],[54,25,56,25]]}
[]
[null,null,null,null,null,null,null,null,null,null,null,null,null,null,null,null,null,null,null,"Załącznik do rozporządzenia \nMinistra Energii z dnia …  \n(poz. …)\n\n"]
[]
[]
[]
[]
[]
[null,"Sprawozdanie kwartalne podmiotu realizującego Narodowy Cel Wskaźnikowy w zakresie dotyczącym paliw ciekłych, biopaliw ciekłych i innych paliw odnawialnych"]
[null,"za ………  kwartał 20………. r."]
[]
[null,"Informacje o podmiocie realizującym Narodowy Cel Wskaźnikowy "]
[null,"Oznaczenie podmiotu1)",null,null,null,null,null,null,null,null,null,null,null,null,null,null,"1"]
[null,"Państwo2)",null,null,null,null,null,null,null,null,null,null,null,null,null,null,"2"]
[null,"Ulica i numer budynku/lokalu zamieszkania/siedziby",null,null,null,null,null,null,null,null,null,null,null,null,null,null,"3"]
[null,"Kod pocztowy",null,null,null,null,null,null,null,null,null,null,null,null,null,null,"4"]
[null,"Miejscowość",null,null,null,null,null,null,null,null,null,null,null,null,null,null,"5"]
[null,"Województwo ",null,null,null,null,null,null,null,null,null,null,null,null,null,null,"6"]
[null,"Numer identyfikacji podatkowej3)",null,null,null,null,null,null,null,null,null,null,null,null,null,null,"7"]
[null," "]
[]
[null,"1. PALIWA CIEKŁE WYKORZYSTANE DO REALIZACJI OBOWIĄZKU, O KTÓRYM MOWA W ART. 23b USTAWY Z DNIA 25 SIERPNIA 2006 R. O BIOKOMPONENTACH I BIOPALIWACH CIEKŁYCH, ZWANEJ DALEJ „USTAWĄ”, ROZPORZĄDZANE PRZEZ DOKONANIE JAKIEJKOLWIEK CZYNNOŚCI PRAWNEJ LUB FAKTYCZNEJ LUB ZUŻYTE NA POTRZEBY WŁASNE Z OKREŚLENIEM ZAWARTOŚCI BIOKOMPONENTÓW W TYCH PALIWACH 4) "]
[null,0,null,null,null,null,1,2,null,3,null,null,4,null,null,5,null,null,6,null,null,7,8,9,10,11,12,13,14,15]
[null,"Paliwo ciekłe",null,null,null,null,"Nr wiersza","Ilość [tony]5)",null,"Zawartość biokomponentów w paliwie ciekłym [tony]5)"]
[null,null,null,null,null,null,null,null,null,"bioetanol ",null,null,null,null,null,"ester ",null,null,null,null,null,"biometanol","bioeter dimetylowy","czysty olej roślinny","biobutanol","bio propan-butan","skroplony biometan","sprężony biometan","biowodór","biowęglowodory ciekłe"]
[null,null,null,null,null,null,null,null,null,null,null,null,null,null,null," metylowy kwasów tłuszczowych",null,null," etylowy kwasów tłuszczowych"]
[null,"Benzyny silnikowe, kóre mogą zawierać bioweglowodory ciekłe, lub do 10,0% objętościowo innych biokomponentów lub  do 22,0% objętoścowo eteru etylo-tert-butylowego lub eteru etylo-tert-amylowego",null,null,null,null,8,0,null,0,null,null,null,null,null,0,null,null,0,null,null,0,0,0,0,0,0,0,0,0]
[]
[]
[null,"Olej napędowy, który może zawierać biowęglowodory ciekłe, lub do 7% objętościowo innych biokomponentów ",null,null,null,null,9,0,null,0,null,null,null,null,null,0,null,null,0,null,null,0,0,0,0,0,0,0,0,0]
[]
[]
[null,"RAZEM (w.8+w.9)",null,null,null,null,10,{"$f":"SUM(H26:I31)","v":0},null,{"$f":"SUM(J26:O31)","v":0},null,null,null,null,null,{"$f":"SUM(P26:R31)","v":0},null,null,{"$f":"SUM(S26:U31)","v":0},null,null,{"$f":"SUM(V26:V31)","v":0},0,0,0,0,0,0,0,{"$f":"SUM(AD26:AE31)","v":0}]
[]
[null,"2. PALIWA CIEKŁE, KTÓRE NIE ZOSTAŁY WYKORZYSTANE DO REALIZACJI OBOWIĄZKU, O KTÓRYM MOWA W ART. 23b USTAWY, ROZPORZĄDZANE PRZEZ DOKONANIE JAKIEJKOLWIEK CZYNNOŚCI PRAWNEJ LUB FAKTYCZNEJ LUB ZUŻYTE NA POTRZEBY WŁASNE Z OKREŚLENIEM ZAWARTOŚCI BIOKOMPONENTÓW W TYCH PALIWACH 4)"]
[null,0,null,null,null,null,1,2,null,3,null,null,4,null,null,5,null,null,6,null,null,7,8,9,10,11,12,13,14,15]
[null,"Paliwo ciekłe",null,null,null,null,null,"Ilość [tony]5)",null,"Zawartość biokomponentów w paliwie ciekłym [tony]5)"]
[null,null,null,null,null,null,null,null,null,"bioetanol ",null,null,null,null,null,"ester ",null,null,null,null,null,"biometanol","bioeter dimetylowy","czysty olej roślinny","biobutanol","bio propan-butan","skroplony biometan","sprężony biometan","biowodór","biowęglowodory ciekłe"]
[null,null,null,null,null,null,null,null,null,null,null,null,null,null,null," metylowy kwasów tłuszczowych",null,null," etylowy kwasów tłuszczowych"]
[null,"Benzyny silnikowe, kóre mogą zawierać bioweglowodory ciekłe, lub do 10,0% objętościowo innych biokomponentów lub  do 22,0% objętoścowo eteru etylo-tert-butylowego lub eteru etylo-tert-amylowego",null,null,null,null,11,0,null,0,null,null,null,null,null,0,null,null,0,null,null,0,0,0,0,0,0,0,0,0]
[]
[]
[null,"Olej napędowy, który może zawierać biowęglowodory ciekłe, lub do 7% objętościowo innych biokomponentów ",null,null,null,null,12,0,null,0,null,null,null,null,null,0,null,null,0,null,null,0,0,0,0,0,0,0,0,0]
[]
[]
[null,"RAZEM (w.11+w.12)",null,null,null,null,13,{"$f":"SUM(H39:I44)","v":0},null,{"$f":"SUM(J39:O44)","v":0},null,null,null,null,null,{"$f":"SUM(P39:R44)","v":0},null,null,{"$f":"SUM(S39:U44)","v":0},null,null,{"$f":"SUM(V39:V44)","v":0},0,0,0,0,0,0,0,{"$f":"SUM(AD39:AE44)","v":0}]
[]
[null,"3. BIOPALIWA CIEKŁE ROZPORZĄDZANE PRZEZ DOKONANIE JAKIEJKOLWIEK CZYNNOŚCI PRAWNEJ LUB FAKTYCZNEJ  LUB ZUŻYTE NA POTRZEBY WŁASNE, Z OKREŚLENIEM ZAWARTOŚCI BIOKOMPONENTÓW W TYCH BIOPALIWACH4)"]
[null,0,null,null,null,null,1,2,null,3,null,null,4,null,null,5,null,null,6,null,null,7,8,9,10,11,12,13,14]
[null,"Biopaliwo ciekłe",null,null,null,null,null,"Ilość [tony]5)",null,"Zawartość biokomponentów w biopaliwie ciekłym [tony]5)"]
[null,null,null,null,null,null,null,null,null,"bioetanol ",null,null,null,null,null,"ester ",null,null,null,null,null,"biometanol","bioeter dimetylowy","czysty olej roślinny","biobutanol","bio propan-butan","skroplony biometan","sprężony biometan","biowodór"]
[null,null,null,null,null,null,null,null,null,null,null,null,null,null,null," metylowy kwasów tłuszczowych",null,null," etylowy kwasów tłuszczowych"]
[null,"Benzyny silnikowe zawierające powyżej 10,0% objętościowo biokomponentów lub powyżej 22,0% objętościowo eteru etylo-tert-butylowego lub eteru etylo-tert-amylowego, z wyłączeniem benzyn silnikowych zawierających biowęglowodory ciekłe",null,null,null,null,14,0,null,0,null,null,null,null,null,0,null,null,0,null,null,0,0,0,0,0,0,0,0]
[]
[]
[null,"Olej napędowy zawierający powyżej 7% objętościowo biokomponentów, z wyłączeniem oleju napędowego zawierającego biowęglowodory ciekłe",null,null,null,null,15,0,null,0,null,null,null,null,null,0,null,null,0,null,null,0,0,0,0,0,0,0,0]
[]
[]
[null,"ester stanowiący samoistne paliwo",null,null,null," metylowy kwasów tłuszczowych",16,0]
[null,null,null,null,null," etylowy kwasów tłuszczowych",17,0]
[null,"bioetanol stanowiący samoistne paliwo ",null,null,null,null,18,0]
[]
[null,"biometanol stanowiący samoistne paliwo",null,null,null,null,19,0]
[null,"bioeter dimetylowy stanowiący samoistne paliwo",null,null,null,null,20,0]
[null,"czysty olej roślinny stanowiący samoistne paliwo",null,null,null,null,21,0]
[null,"biobutanol stanowiący samoistne paliwo",null,null,null,null,22,0]
[null,"bio propan-butan stanowiący samoistne paliwo",null,null,null,null,23,0]
[null,"skroplony biometan stanowiący samoistne paliwo",null,null,null,null,24,0]
[null,"sprężony biometan stanowiący samoistne paliwo",null,null,null,null,25,0]
[null,"biowodór stanowiący samoistne paliwo",null,null,null,null,26,0]
[null,"biowęglowodory ciekłe stanowiące samoistne paliwo",null,null,null,null,27,0]
[null,"RAZEM (w.14+w.15+w.16+w.17+w.18+w.19+w.20+w.21+w.22+w.23+w.24+w.25+w.26+w.27)",null,null,null,null,28,{"$f":"SUM(H52:I70)","v":0},null,{"$f":"SUM(J52:O57)","v":0},null,null,null,null,null,{"$f":"SUM(P52:R57)","v":0},null,null,{"$f":"SUM(S52:U57)","v":0},null,null,{"$f":"SUM(V52:V57)","v":0},0,0,0,0,0,0,{"$f":"SUM(AC52:AE57)","v":0}]
[]
[null,"4. INNE PALIWA ODNAWIALNE ROZPORZĄDZANE PRZEZ DOKONANIE JAKIEJKOLWIEK CZYNNOŚCI PRAWNEJ LUB FAKTYCZNEJ LUB ZUŻYTE NA POTRZEBY WŁASNE"]
[null,"Rodzaj innego paliwa odnawialnego",null,null,null,null,null,null,null,null,null,null,null,null,null,null,null,null,null,null,null,null,null,"Nr wiersza"]
[null,"Rodzaj 1:",null,null,null,null,null,null,null,null,null,null,null,null,null,null,null,null,null,null,null,null,null,29]
[null,"Rodzaj 2:",null,null,null,null,null,null,null,null,null,null,null,null,null,null,null,null,null,null,null,null,null,30]
[null,"Rodzaj 3:",null,null,null,null,null,null,null,null,null,null,null,null,null,null,null,null,null,null,null,null,null,31]
[]
[]
[null,"5. RODZAJE BIOKOMPONENTÓW WYKORZYSTANYCH W PALIWACH CIEKŁYCH I BIOPALIWACH CIEKŁYCH, O KTÓRYCH W ART. 30b UST. 3 PKT 1 i 2 USTAWY6) (W CZĘŚCIACH 1 - 3 SPRAWOZDANIA)"]
[null,"Rodzaj biokomponentu",null,null,null,null,null,"Nr wiersza","Biokomponenty samodzielnie lub za pośrednictwem innego podmiotu importowane lub nabyte wewnątrzwspólnotowo",null,null,null,null,null,null,null,null,null,null,null,null,null,null,null,"Pozostałe biokomponenty"]
[null,null,null,null,null,null,null,null,"zawarte w paliwach ciekłych, o których mowa w części 1 i 2 sprawozdania",null,null,null,null,null,null,null,null,null,"zawarte w biopaliwach ciekłych, o których mowa w części 3 sprawozdania"]
[null,"bioetanol",null,null,null,null,null,32]
[null,"biometanol",null,null,null,null,null,33]
[null,"biobutanol",null,null,null,null,null,34]
[null,"ester",null,null,null,null,null,35]
[null,"bioeter dimetylowy",null,null,null,null,null,36]
[null,"czysty olej roslinny",null,null,null,null,null,37]
[null,"biowęglowodory ciekłe",null,null,null,null,null,38]
[null,"bio propan-butan",null,null,null,null,null,39]
[null,"skroplony biometan",null,null,null,null,null,40]
[null,"sprężony biometan",null,null,null,null,null,41]
[null,"biowodór",null,null,null,null,null,42]
[]
[null,"Jestem świadomy odpowiedzialności karnej za złożenie fałszywego oświadczenia wynikającej z art. 233 § 6 ustawy z dnia 6 czerwca 1997 r. – Kodeks karny."]
[]
[null,"Miejsce i data sporządzenia sprawozdania ",null,null,null,null,null,null,null,null,null,null,null,null,null,null,null,null,null,null,null,null,"Podpis osoby upoważnionej do reprezentowania podmiotu składającego sprawozdanie7)"]
[]
[]
[]
[]
[]
[]
[null,"Objaśnienia"]
[null,"1) Firma, w brzmieniu zgodnym z wpisem występującym we właściwym rejestrze, tj. w Krajowym Rejestrze Sądowym lub Centralnej Ewidencji i Informacji o Działalności Gospodarczej, w przypadku podmiotów prowadzących działalność gospodarczą lub imię i nazwisko w przypadku osób fizycznych. "]
[null,"2) Należy wpisać państwo, w którym podmiot realizujący Narodowy Cel Wskaźnikowy ma siedzibę lub miejsce zamieszkania.  "]
[null,"3) Jeżeli podmiot posiada."]
[null,"4) Wypełniając kolumnę 2 w części 1, 2 oraz 3 sprawozdania należy w niej uwzględnić całkowitą ilość paliwa ciekłego lub biopaliwa ciekłego, tj. wraz z zawartością danego rodzaju biokomponentu (biokomponentów). Natomiast wypełniając kolumny 3 - 15 należy podać ilość danego rodzaju biokomponentu (biokomponentów) rozumianą jako jego zawartość w całkowitej ilości paliwa ciekłego lub biopaliwa ciekłego, podanej w kolumnie 1."]
[null,"5) W celu dokonania przeliczenia z jednostki objętości na jednostkę masy oraz z jednostki masy na jednostkę objętości należy stosować wartości wskazane w rozporządzeniu Ministra Gospodarki z dnia 21 października 2014 r. w sprawie wartości opałowej poszczególnych biokomponentów i paliw ciekłych (Dz. U. poz. 1517). "]
[null,"6) Znakiem \"x\" należy zaznaczyć wykorzystane biokomponenty. "]
[null,"7) W przypadku sprawozdania składanego w postaci papierowej -  czytelny podpis ze wskazaniem imienia i nazwiska; w przypadku postaci elektronicznej - kwalifikowany podpis elektroniczny lub podpis potwierdzony profilem zaufanym ePUAP."]